[Event "Titled Tuesday Blitz May 24 Early 2022"]
[White "Korchmar, Vasiliy"]
[Black "Mortazavi, Ali"]
[WhiteFideId "24131750"]
[BlackFideId "401323"]
[WhiteElo "2370"]
[BlackElo "2339"]
[Result "0-1"]
[Round "05"]
[TimeControl "180+1"]
[Date "2022.05.25"]
[WhiteClock "0:00:12"]
[BlackClock "0:00:11"]

1. e4 {[%clk 0:03:00]}  c6 {[%clk 0:02:57]} 2. d4 {[%clk 0:03:00]}  d5 {[%clk 0:02:56]} 3. e5 {[%clk 0:03:01]}  Bf5 {[%clk 0:02:55]} 4. c4 {[%clk 0:03:01]}  dxc4 {[%clk 0:02:54]} 5. Bxc4 {[%clk 0:03:00]}  e6 {[%clk 0:02:55]} 6. Nc3 {[%clk 0:03:00]}  Nd7 {[%clk 0:02:55]} 7. Nge2 {[%clk 0:02:59]}  Ne7 {[%clk 0:02:52]} 8. Ng3 {[%clk 0:03:00]}  Bg6 {[%clk 0:02:52]} 9. h4 {[%clk 0:03:00]}  h6 {[%clk 0:02:46]} 10. h5 {[%clk 0:02:59]}  Bh7 {[%clk 0:02:46]} 11. O-O {[%clk 0:02:58]}  Nb6 {[%clk 0:02:46]} 12. Bb3 {[%clk 0:02:58]}  Ned5 {[%clk 0:02:38]} 13. Qg4 {[%clk 0:02:51]}  Qd7 {[%clk 0:02:25]} 14. a4 {[%clk 0:02:51]}  a5 {[%clk 0:02:24]} 15. Nce4 {[%clk 0:02:49]}  O-O-O {[%clk 0:02:23]} 16. Bd2 {[%clk 0:02:48]}  Nb4 {[%clk 0:02:12]} 17. Bxb4 {[%clk 0:02:24]}  Bxb4 {[%clk 0:02:11]} 18. Qxg7 {[%clk 0:02:24]}  Bxe4 {[%clk 0:01:40]} 19. Nxe4 {[%clk 0:02:23]}  Qxd4 {[%clk 0:01:40]} 20. Nf6 {[%clk 0:02:06]}  Nd5 {[%clk 0:01:08]} 21. Bxd5 {[%clk 0:02:03]}  exd5 {[%clk 0:01:08]} 22. Qg3 {[%clk 0:01:12]}  Be7 {[%clk 0:00:49]} 23. Rfd1 {[%clk 0:01:05]}  Qb4 {[%clk 0:00:43]} 24. Qf3 {[%clk 0:00:51]}  Bxf6 {[%clk 0:00:38]} 25. Qxf6 {[%clk 0:00:51]}  Rhg8 {[%clk 0:00:35]} 26. Qxf7 {[%clk 0:00:36]}  Qe4 {[%clk 0:00:35]} 27. g3 {[%clk 0:00:26]}  Rdf8 {[%clk 0:00:34]} 28. Qe6+ {[%clk 0:00:24]}  Kb8 {[%clk 0:00:35]} 29. Ra3 {[%clk 0:00:14]}  Qe2 {[%clk 0:00:20]} 30. Rf1 {[%clk 0:00:14]}  Qxh5 {[%clk 0:00:19]} 31. Rb3 {[%clk 0:00:11]}  Qf7 {[%clk 0:00:15]} 32. Qxc6 {[%clk 0:00:10]}  Rxg3+ {[%clk 0:00:14]} 33. Kh2 {[%clk 0:00:04]}  Rxb3 {[%clk 0:00:14]} 34. Qd6+ {[%clk 0:00:04]}  Ka8 {[%clk 0:00:13]} 35. e6 {[%clk 0:00:04]}  Qh5+ {[%clk 0:00:13]} 36. Kg2 {[%clk 0:00:04]}  Rg8+ {[%clk 0:00:12]} 37. Qg3 {[%clk 0:00:05]}  Rbxg3+ {[%clk 0:00:11]} 38. fxg3 {[%clk 0:00:06]}  Qe2+ {[%clk 0:00:11]} 39. Rf2 {[%clk 0:00:06]}  Qe4+ {[%clk 0:00:12]} 40. Rf3 {[%clk 0:00:06]}  Qxe6 {[%clk 0:00:13]} 41. b3 {[%clk 0:00:07]}  Qe2+ {[%clk 0:00:12]} 42. Rf2 {[%clk 0:00:08]}  Qe4+ {[%clk 0:00:11]} 43. Rf3 {[%clk 0:00:09]}  d4 {[%clk 0:00:11]} 44. b4 {[%clk 0:00:09]}  d3 {[%clk 0:00:11]} 45. g4 {[%clk 0:00:10]}  d2 {[%clk 0:00:11]} 46. g5 {[%clk 0:00:10]}  Rxg5+ {[%clk 0:00:10]} 47. Kh3 {[%clk 0:00:11]}  Qxf3+ {[%clk 0:00:11]} 48. Kh4 {[%clk 0:00:12]}  Qg3# {[%clk 0:00:11]} 0-1


[Site "https://www.chess.com"]

[Event "Titled Tuesday Blitz May 24 Early 2022"]
[White "Kosteniuk, Alexandra"]
[Black "Ianov, Viktor"]
[WhiteFideId "4128125"]
[BlackFideId "14102730"]
[WhiteElo "2682"]
[BlackElo "2486"]
[Result "0-1"]
[Round "05"]
[TimeControl "180+1"]
[Date "2022.05.25"]
[WhiteClock "0:00:30"]
[BlackClock "0:00:37"]

1. e4 {[%clk 0:02:51]}  d6 {[%clk 0:02:59]} 2. d4 {[%clk 0:02:50]}  Nf6 {[%clk 0:03:00]} 3. Nc3 {[%clk 0:02:50]}  c6 {[%clk 0:03:00]} 4. Be3 {[%clk 0:02:48]}  Nbd7 {[%clk 0:02:57]} 5. a4 {[%clk 0:02:48]}  e5 {[%clk 0:02:57]} 6. Qd2 {[%clk 0:02:44]}  Be7 {[%clk 0:02:57]} 7. Nf3 {[%clk 0:02:36]}  Ng4 {[%clk 0:02:53]} 8. O-O-O {[%clk 0:01:59]}  Nxe3 {[%clk 0:02:51]} 9. Qxe3 {[%clk 0:02:00]}  Qc7 {[%clk 0:02:48]} 10. h4 {[%clk 0:01:59]}  O-O {[%clk 0:02:43]} 11. Ng5 {[%clk 0:01:54]}  Nf6 {[%clk 0:02:38]} 12. f3 {[%clk 0:01:49]}  a6 {[%clk 0:02:36]} 13. g4 {[%clk 0:01:46]}  b5 {[%clk 0:02:36]} 14. h5 {[%clk 0:01:34]}  Bb7 {[%clk 0:02:23]} 15. h6 {[%clk 0:01:33]}  g6 {[%clk 0:02:22]} 16. f4 {[%clk 0:01:31]}  Nxg4 {[%clk 0:02:15]} 17. Qg3 {[%clk 0:01:29]}  Nf6 {[%clk 0:02:13]} 18. fxe5 {[%clk 0:01:23]}  dxe5 {[%clk 0:02:12]} 19. dxe5 {[%clk 0:01:20]}  Nd7 {[%clk 0:02:00]} 20. Nf3 {[%clk 0:01:19]}  Nc5 {[%clk 0:01:57]} 21. Qg4 {[%clk 0:01:03]}  Bc8 {[%clk 0:01:51]} 22. Qf4 {[%clk 0:01:00]}  b4 {[%clk 0:01:45]} 23. Ne2 {[%clk 0:00:56]}  b3 {[%clk 0:01:36]} 24. c3 {[%clk 0:00:56]}  Qa5 {[%clk 0:01:31]} 25. Ned4 {[%clk 0:00:55]}  Qxa4 {[%clk 0:01:28]} 26. Kd2 {[%clk 0:00:54]}  Ne6 {[%clk 0:01:23]} 27. Qg3 {[%clk 0:00:41]}  c5 {[%clk 0:01:20]} 28. Nf5 {[%clk 0:00:40]}  Ra7 {[%clk 0:01:10]} 29. Nxe7+ {[%clk 0:00:35]}  Rxe7 {[%clk 0:01:08]} 30. Ke3 {[%clk 0:00:35]}  Bb7 {[%clk 0:01:05]} 31. Bd3 {[%clk 0:00:35]}  c4 {[%clk 0:01:02]} 32. Bb1 {[%clk 0:00:36]}  Qc6 {[%clk 0:00:58]} 33. Rd6 {[%clk 0:00:33]}  Qc5+ {[%clk 0:00:58]} 34. Ke2 {[%clk 0:00:34]}  Qa5 {[%clk 0:00:40]} 35. Rhd1 {[%clk 0:00:33]}  Qa1 {[%clk 0:00:38]} 36. R6d2 {[%clk 0:00:30]}  Nc5 {[%clk 0:00:37]} 0-1


[Site "https://www.chess.com"]

[Event "Titled Tuesday Blitz May 24 Early 2022"]
[White "Kowalysko, Roman"]
[Black "Avazkhonov, Alikhon"]
[WhiteFideId "30918510"]
[BlackFideId "14208504"]
[WhiteElo "2159"]
[BlackElo "1739"]
[Result "1-0"]
[Round "05"]
[TimeControl "180+1"]
[Date "2022.05.25"]
[WhiteClock "0:00:47"]
[BlackClock "0:00:03"]

1. e4 {[%clk 0:02:59]}  c5 {[%clk 0:02:53]} 2. Nf3 {[%clk 0:02:59]}  d6 {[%clk 0:02:53]} 3. d4 {[%clk 0:02:58]}  cxd4 {[%clk 0:02:54]} 4. Nxd4 {[%clk 0:02:57]}  Nf6 {[%clk 0:02:55]} 5. Nc3 {[%clk 0:02:57]}  a6 {[%clk 0:02:54]} 6. Bg5 {[%clk 0:02:57]}  e6 {[%clk 0:02:55]} 7. f4 {[%clk 0:02:57]}  h6 {[%clk 0:02:55]} 8. Bh4 {[%clk 0:02:56]}  Be7 {[%clk 0:02:56]} 9. Qf3 {[%clk 0:02:56]}  Qc7 {[%clk 0:02:56]} 10. O-O-O {[%clk 0:02:56]}  Nbd7 {[%clk 0:02:56]} 11. Qg3 {[%clk 0:02:55]}  O-O {[%clk 0:02:43]} 12. Be2 {[%clk 0:02:52]}  b5 {[%clk 0:02:42]} 13. Bf3 {[%clk 0:02:36]}  Bb7 {[%clk 0:02:41]} 14. e5 {[%clk 0:02:33]}  dxe5 {[%clk 0:01:41]} 15. fxe5 {[%clk 0:02:32]}  Bxf3 {[%clk 0:00:29]} 16. exf6 {[%clk 0:02:29]}  Qxg3 {[%clk 0:00:23]} 17. Bxg3 {[%clk 0:02:27]}  Bxd1 {[%clk 0:00:12]} 18. fxe7 {[%clk 0:02:25]}  Rfe8 {[%clk 0:00:12]} 19. Rxd1 {[%clk 0:02:21]}  Nf6 {[%clk 0:00:09]} 20. Bd6 {[%clk 0:01:36]}  Rac8 {[%clk 0:00:09]} 21. a4 {[%clk 0:01:25]}  bxa4 {[%clk 0:00:07]} 22. Nxa4 {[%clk 0:01:23]}  Kh7 {[%clk 0:00:06]} 23. Nb6 {[%clk 0:01:17]}  Ng8 {[%clk 0:00:02]} 24. Nxc8 {[%clk 0:01:16]}  Rxc8 {[%clk 0:00:03]} 25. Nc6 {[%clk 0:01:09]}  Kg6 {[%clk 0:00:03]} 26. Nd8 {[%clk 0:01:07]}  Nf6 {[%clk 0:00:03]} 27. Ba3 {[%clk 0:00:55]}  Ne8 {[%clk 0:00:03]} 28. Nb7 {[%clk 0:00:47]}  f6 {[%clk 0:00:03]} 29. Rd8 {[%clk 0:00:47]} 1-0


[Site "https://www.chess.com"]

[Event "Titled Tuesday Blitz May 24 Early 2022"]
[White "Kuznetsov, Mikhail"]
[Black "Richter, Nils"]
[WhiteFideId "4117190"]
[BlackFideId "12990809"]
[WhiteElo "1981"]
[BlackElo "2243"]
[Result "0-1"]
[Round "05"]
[TimeControl "180+1"]
[Date "2022.05.25"]
[WhiteClock "0:00:22"]
[BlackClock "0:00:18"]

1. Nf3 {[%clk 0:02:59]}  g6 {[%clk 0:02:53]} 2. g3 {[%clk 0:02:59]}  Bg7 {[%clk 0:02:53]} 3. d4 {[%clk 0:02:59]}  Nf6 {[%clk 0:02:52]} 4. Bg2 {[%clk 0:02:59]}  O-O {[%clk 0:02:53]} 5. O-O {[%clk 0:02:58]}  d6 {[%clk 0:02:53]} 6. c4 {[%clk 0:02:58]}  Nc6 {[%clk 0:02:53]} 7. b3 {[%clk 0:02:58]}  e5 {[%clk 0:02:51]} 8. Bb2 {[%clk 0:02:58]}  e4 {[%clk 0:02:49]} 9. Ne1 {[%clk 0:02:57]}  Bf5 {[%clk 0:02:46]} 10. Nc2 {[%clk 0:02:57]}  Qd7 {[%clk 0:02:44]} 11. Ne3 {[%clk 0:02:57]}  Bh3 {[%clk 0:02:44]} 12. Nc3 {[%clk 0:02:55]}  Rfe8 {[%clk 0:02:43]} 13. Rc1 {[%clk 0:02:46]}  h5 {[%clk 0:02:40]} 14. Qd2 {[%clk 0:02:15]}  a5 {[%clk 0:02:36]} 15. Rfd1 {[%clk 0:02:13]}  Bxg2 {[%clk 0:02:32]} 16. Kxg2 {[%clk 0:02:13]}  Ng4 {[%clk 0:02:27]} 17. Ncd5 {[%clk 0:02:06]}  Ne7 {[%clk 0:02:16]} 18. Nxe7+ {[%clk 0:01:59]}  Rxe7 {[%clk 0:02:11]} 19. Nxg4 {[%clk 0:01:42]}  hxg4 {[%clk 0:02:10]} 20. e3 {[%clk 0:01:40]}  Qf5 {[%clk 0:02:08]} 21. d5 {[%clk 0:01:36]}  Be5 {[%clk 0:02:06]} 22. Bxe5 {[%clk 0:01:34]}  Rxe5 {[%clk 0:02:06]} 23. Qe2 {[%clk 0:01:31]}  Kg7 {[%clk 0:02:04]} 24. h4 {[%clk 0:01:03]}  gxh3+ {[%clk 0:02:01]} 25. Kh2 {[%clk 0:01:03]}  Qf6 {[%clk 0:01:51]} 26. Rh1 {[%clk 0:00:52]}  Rf5 {[%clk 0:01:48]} 27. Rhf1 {[%clk 0:00:51]}  Rf3 {[%clk 0:01:45]} 28. Kxh3 {[%clk 0:00:46]}  Rh8+ {[%clk 0:01:37]} 29. Kg2 {[%clk 0:00:46]}  Rf5 {[%clk 0:01:14]} 30. Rh1 {[%clk 0:00:45]}  Rfh5 {[%clk 0:01:11]} 31. Rxh5 {[%clk 0:00:44]}  Rxh5 {[%clk 0:01:12]} 32. Rh1 {[%clk 0:00:43]}  Qf3+ {[%clk 0:01:07]} 33. Qxf3 {[%clk 0:00:43]}  exf3+ {[%clk 0:01:08]} 34. Kg1 {[%clk 0:00:44]}  Rxh1+ {[%clk 0:01:00]} 35. Kxh1 {[%clk 0:00:45]}  Kf6 {[%clk 0:01:01]} 36. Kh2 {[%clk 0:00:44]}  Ke5 {[%clk 0:01:01]} 37. g4 {[%clk 0:00:43]}  Ke4 {[%clk 0:01:01]} 38. Kg3 {[%clk 0:00:35]}  g5 {[%clk 0:00:59]} 39. a3 {[%clk 0:00:34]}  b6 {[%clk 0:00:45]} 40. a4 {[%clk 0:00:34]}  f6 {[%clk 0:00:41]} 41. Kh3 {[%clk 0:00:26]}  Kd3 {[%clk 0:00:41]} 42. Kg3 {[%clk 0:00:27]}  Kc3 {[%clk 0:00:31]} 43. Kxf3 {[%clk 0:00:27]}  Kxb3 {[%clk 0:00:32]} 44. Ke4 {[%clk 0:00:28]}  Kxc4 {[%clk 0:00:29]} 45. f4 {[%clk 0:00:28]}  b5 {[%clk 0:00:26]} 46. Kf5 {[%clk 0:00:27]}  bxa4 {[%clk 0:00:20]} 47. Kxf6 {[%clk 0:00:27]}  a3 {[%clk 0:00:19]} 48. fxg5 {[%clk 0:00:26]}  a2 {[%clk 0:00:20]} 49. g6 {[%clk 0:00:26]}  a1=Q+ {[%clk 0:00:21]} 50. Kf7 {[%clk 0:00:27]}  Qf1+ {[%clk 0:00:21]} 51. Ke7 {[%clk 0:00:26]}  Qf3 {[%clk 0:00:17]} 52. g7 {[%clk 0:00:24]}  Qxe3+ {[%clk 0:00:17]} 53. Kf7 {[%clk 0:00:23]}  Qf4+ {[%clk 0:00:17]} 54. Ke7 {[%clk 0:00:22]}  Qxg4 {[%clk 0:00:17]} 55. Kf7 {[%clk 0:00:23]}  Qxg7+ {[%clk 0:00:17]} 56. Kxg7 {[%clk 0:00:22]}  a4 {[%clk 0:00:18]} 0-1


[Site "https://www.chess.com"]

[Event "Titled Tuesday Blitz May 24 Early 2022"]
[White "Lazavik, Denis"]
[Black "Antipov, Mikhail Al."]
[WhiteFideId "13515110"]
[BlackFideId "4107012"]
[WhiteElo "2437"]
[BlackElo "2512"]
[Result "1/2-1/2"]
[Round "05"]
[TimeControl "180+1"]
[Date "2022.05.24"]
[WhiteClock "0:00:27"]
[BlackClock "0:00:29"]

1. d4 {[%clk 0:03:00]}  Nf6 {[%clk 0:02:57]} 2. c4 {[%clk 0:03:00]}  g6 {[%clk 0:02:57]} 3. g3 {[%clk 0:02:59]}  c6 {[%clk 0:02:56]} 4. Nf3 {[%clk 0:02:51]}  d5 {[%clk 0:02:55]} 5. Qb3 {[%clk 0:02:50]}  Bg7 {[%clk 0:02:54]} 6. Bg2 {[%clk 0:02:50]}  O-O {[%clk 0:02:53]} 7. Nc3 {[%clk 0:02:51]}  dxc4 {[%clk 0:02:53]} 8. Qxc4 {[%clk 0:02:50]}  Bf5 {[%clk 0:02:53]} 9. O-O {[%clk 0:02:48]}  Nbd7 {[%clk 0:02:51]} 10. a4 {[%clk 0:02:43]}  a5 {[%clk 0:02:39]} 11. Re1 {[%clk 0:02:42]}  Ne4 {[%clk 0:02:37]} 12. Qb3 {[%clk 0:02:36]}  Qb6 {[%clk 0:02:18]} 13. Qxb6 {[%clk 0:02:35]}  Nxb6 {[%clk 0:02:19]} 14. Nh4 {[%clk 0:02:35]}  Nxc3 {[%clk 0:02:07]} 15. Nxf5 {[%clk 0:02:34]}  gxf5 {[%clk 0:02:03]} 16. bxc3 {[%clk 0:02:34]}  Nd5 {[%clk 0:02:04]} 17. Bd2 {[%clk 0:02:29]}  e6 {[%clk 0:02:00]} 18. Rab1 {[%clk 0:02:29]}  Rfb8 {[%clk 0:01:55]} 19. c4 {[%clk 0:02:20]}  Nb4 {[%clk 0:01:45]} 20. e3 {[%clk 0:02:18]}  Bf8 {[%clk 0:01:36]} 21. c5 {[%clk 0:01:59]}  Nd5 {[%clk 0:01:26]} 22. Rb3 {[%clk 0:01:57]}  b5 {[%clk 0:01:14]} 23. cxb6 {[%clk 0:01:51]}  Bb4 {[%clk 0:01:14]} 24. Bxb4 {[%clk 0:01:06]}  Rxb6 {[%clk 0:01:12]} 25. Reb1 {[%clk 0:01:01]}  Rab8 {[%clk 0:01:05]} 26. Bxd5 {[%clk 0:00:55]}  cxd5 {[%clk 0:01:05]} 27. Kf1 {[%clk 0:00:55]}  axb4 {[%clk 0:00:58]} 28. Ke2 {[%clk 0:00:55]}  Kg7 {[%clk 0:00:52]} 29. Kd3 {[%clk 0:00:54]}  Kf6 {[%clk 0:00:49]} 30. R3b2 {[%clk 0:00:47]}  R6b7 {[%clk 0:00:44]} 31. Kc2 {[%clk 0:00:39]}  Rc7+ {[%clk 0:00:43]} 32. Kd2 {[%clk 0:00:38]}  Rcb7 {[%clk 0:00:40]} 33. Rc1 {[%clk 0:00:36]}  Ra8 {[%clk 0:00:39]} 34. Ra1 {[%clk 0:00:35]}  b3 {[%clk 0:00:33]} 35. Kc3 {[%clk 0:00:32]}  Rc8+ {[%clk 0:00:32]} 36. Kd3 {[%clk 0:00:32]}  Ra8 {[%clk 0:00:30]} 37. a5 {[%clk 0:00:28]}  Rb5 {[%clk 0:00:30]} 38. a6 {[%clk 0:00:28]}  Rb6 {[%clk 0:00:30]} 39. a7 {[%clk 0:00:28]}  Rb7 {[%clk 0:00:30]} 40. Ke2 {[%clk 0:00:27]}  Raxa7 {[%clk 0:00:29]} 41. Rxa7 {[%clk 0:00:27]}  Rxa7 {[%clk 0:00:29]} 1/2-1/2


[Site "https://www.chess.com"]

[Event "Titled Tuesday Blitz May 24 Early 2022"]
[White "Le, Tuan Minh"]
[Black "Rom, Jasper"]
[WhiteFideId "12401153"]
[BlackFideId "2023733"]
[WhiteElo "2950"]
[BlackElo "2447"]
[Result "1-0"]
[Round "05"]
[TimeControl "180+1"]
[Date "2022.05.25"]
[WhiteClock "0:01:49"]
[BlackClock "0:00:03"]

1. d4 {[%clk 0:03:00]}  d5 {[%clk 0:02:50]} 2. Nf3 {[%clk 0:03:01]}  e6 {[%clk 0:02:46]} 3. Bf4 {[%clk 0:03:01]}  Bd6 {[%clk 0:02:45]} 4. Bg3 {[%clk 0:03:02]}  Nf6 {[%clk 0:02:45]} 5. e3 {[%clk 0:03:02]}  b6 {[%clk 0:02:44]} 6. c4 {[%clk 0:03:03]}  Bb7 {[%clk 0:02:44]} 7. Nc3 {[%clk 0:03:03]}  O-O {[%clk 0:02:43]} 8. Rc1 {[%clk 0:03:04]}  Nbd7 {[%clk 0:02:39]} 9. cxd5 {[%clk 0:03:03]}  Nxd5 {[%clk 0:02:30]} 10. Bd3 {[%clk 0:03:02]}  a6 {[%clk 0:02:12]} 11. a3 {[%clk 0:02:55]}  Qe7 {[%clk 0:02:05]} 12. Bh4 {[%clk 0:02:50]}  f6 {[%clk 0:01:56]} 13. Ne4 {[%clk 0:02:46]}  g5 {[%clk 0:01:33]} 14. Nxd6 {[%clk 0:02:36]}  cxd6 {[%clk 0:01:32]} 15. Bg3 {[%clk 0:02:36]}  e5 {[%clk 0:01:26]} 16. dxe5 {[%clk 0:02:35]}  dxe5 {[%clk 0:01:22]} 17. Bc4 {[%clk 0:02:35]}  Qf7 {[%clk 0:01:14]} 18. e4 {[%clk 0:02:35]}  b5 {[%clk 0:00:41]} 19. Bxd5 {[%clk 0:02:35]}  Bxd5 {[%clk 0:00:39]} 20. Qxd5 {[%clk 0:02:31]}  Qxd5 {[%clk 0:00:38]} 21. exd5 {[%clk 0:02:32]}  Nb6 {[%clk 0:00:38]} 22. O-O {[%clk 0:02:09]}  Nxd5 {[%clk 0:00:37]} 23. Rfd1 {[%clk 0:02:09]}  Rfd8 {[%clk 0:00:34]} 24. Nd2 {[%clk 0:02:10]}  Kf7 {[%clk 0:00:24]} 25. Ne4 {[%clk 0:02:10]}  Ra7 {[%clk 0:00:16]} 26. h4 {[%clk 0:02:01]}  h6 {[%clk 0:00:15]} 27. Rc6 {[%clk 0:01:56]}  Ke7 {[%clk 0:00:14]} 28. hxg5 {[%clk 0:01:55]}  hxg5 {[%clk 0:00:14]} 29. Nxf6 {[%clk 0:01:53]}  Nf4 {[%clk 0:00:06]} 30. Rxd8 {[%clk 0:01:52]}  Kxd8 {[%clk 0:00:06]} 31. Bxf4 {[%clk 0:01:52]}  gxf4 {[%clk 0:00:03]} 32. Re6 {[%clk 0:01:52]}  Re7 {[%clk 0:00:03]} 33. Rxe7 {[%clk 0:01:49]}  Kxe7 {[%clk 0:00:03]} 34. Ne4 {[%clk 0:01:50]}  Ke6 {[%clk 0:00:04]} 35. Nc5+ {[%clk 0:01:49]}  Kd5 {[%clk 0:00:03]} 36. Nxa6 {[%clk 0:01:50]}  Kc4 {[%clk 0:00:03]} 37. Nc7 {[%clk 0:01:49]} 1-0


[Site "https://www.chess.com"]

[Event "Titled Tuesday Blitz May 24 Early 2022"]
[White "Leschinsky, Gary"]
[Black "Gabrielian, Artur"]
[WhiteFideId "30951321"]
[BlackFideId "4131002"]
[WhiteElo "2411"]
[BlackElo "2750"]
[Result "0-1"]
[Round "05"]
[TimeControl "180+1"]
[Date "2022.05.25"]
[WhiteClock "0:00:01"]
[BlackClock "0:00:13"]

1. d4 {[%clk 0:03:00]}  Nf6 {[%clk 0:02:59]} 2. c4 {[%clk 0:03:01]}  c5 {[%clk 0:02:59]} 3. d5 {[%clk 0:03:01]}  e6 {[%clk 0:02:59]} 4. Nc3 {[%clk 0:03:01]}  exd5 {[%clk 0:03:00]} 5. cxd5 {[%clk 0:03:02]}  d6 {[%clk 0:03:00]} 6. e4 {[%clk 0:03:02]}  g6 {[%clk 0:03:00]} 7. Nge2 {[%clk 0:03:02]}  h5 {[%clk 0:03:00]} 8. Bg5 {[%clk 0:02:48]}  Bg7 {[%clk 0:02:59]} 9. f4 {[%clk 0:02:28]}  Nbd7 {[%clk 0:02:48]} 10. h3 {[%clk 0:02:24]}  O-O {[%clk 0:02:41]} 11. Ng3 {[%clk 0:02:23]}  Qb6 {[%clk 0:02:35]} 12. Qd2 {[%clk 0:02:21]}  Nh7 {[%clk 0:02:35]} 13. Bh4 {[%clk 0:02:20]}  Re8 {[%clk 0:02:28]} 14. Be2 {[%clk 0:02:18]}  c4 {[%clk 0:02:27]} 15. O-O-O {[%clk 0:02:08]}  Nc5 {[%clk 0:02:24]} 16. Rhf1 {[%clk 0:01:56]}  Bd7 {[%clk 0:02:08]} 17. e5 {[%clk 0:01:54]}  Rac8 {[%clk 0:02:03]} 18. e6 {[%clk 0:01:46]}  fxe6 {[%clk 0:02:01]} 19. dxe6 {[%clk 0:01:47]}  Bxe6 {[%clk 0:02:01]} 20. f5 {[%clk 0:01:47]}  Bxf5 {[%clk 0:01:13]} 21. Nxf5 {[%clk 0:01:47]}  gxf5 {[%clk 0:01:13]} 22. Rxf5 {[%clk 0:01:10]}  Nd3+ {[%clk 0:01:11]} 23. Bxd3 {[%clk 0:01:07]}  cxd3 {[%clk 0:01:11]} 24. Qxd3 {[%clk 0:01:00]}  Re3 {[%clk 0:01:07]} 25. Qd5+ {[%clk 0:00:51]}  Kh8 {[%clk 0:01:07]} 26. Rd3 {[%clk 0:00:17]}  Re2 {[%clk 0:00:49]} 27. Qb3 {[%clk 0:00:06]}  Bh6+ {[%clk 0:00:20]} 28. Kb1 {[%clk 0:00:02]}  Qxb3 {[%clk 0:00:17]} 29. axb3 {[%clk 0:00:03]}  Rxg2 {[%clk 0:00:16]} 30. Rxh5 {[%clk 0:00:03]}  Bg7 {[%clk 0:00:16]} 31. Rxd6 {[%clk 0:00:02]}  Kg8 {[%clk 0:00:16]} 32. Rd3 {[%clk 0:00:01]}  a6 {[%clk 0:00:15]} 33. Ne4 {[%clk 0:00:01]}  Rxb2+ {[%clk 0:00:13]} 0-1


[Site "https://www.chess.com"]

[Event "Titled Tuesday Blitz May 24 Early 2022"]
[White "Liyanage, Ranindu Dilshan"]
[Black "Rustemov, Alexander"]
[WhiteFideId "9915834"]
[BlackFideId "4119002"]
[WhiteElo "1858"]
[BlackElo "2828"]
[Result "1-0"]
[Round "05"]
[TimeControl "180+1"]
[Date "2022.05.24"]
[WhiteClock "0:00:11"]
[BlackClock "0:00:07"]

1. e4 {[%clk 0:03:00]}  e6 {[%clk 0:02:57]} 2. d4 {[%clk 0:03:00]}  d5 {[%clk 0:02:57]} 3. Nc3 {[%clk 0:03:01]}  Bb4 {[%clk 0:02:57]} 4. exd5 {[%clk 0:03:01]}  exd5 {[%clk 0:02:56]} 5. Bd3 {[%clk 0:03:02]}  Nc6 {[%clk 0:02:57]} 6. Ne2 {[%clk 0:03:02]}  Nge7 {[%clk 0:02:56]} 7. a3 {[%clk 0:03:00]}  Bxc3+ {[%clk 0:02:54]} 8. bxc3 {[%clk 0:02:58]}  Bf5 {[%clk 0:02:54]} 9. Rb1 {[%clk 0:02:57]}  b6 {[%clk 0:02:48]} 10. O-O {[%clk 0:02:54]}  O-O {[%clk 0:02:48]} 11. Ng3 {[%clk 0:02:53]}  Bxd3 {[%clk 0:02:45]} 12. cxd3 {[%clk 0:02:54]}  Qd7 {[%clk 0:02:41]} 13. Qf3 {[%clk 0:02:47]}  Rae8 {[%clk 0:02:33]} 14. Re1 {[%clk 0:02:30]}  Ng6 {[%clk 0:02:27]} 15. Bg5 {[%clk 0:02:29]}  f6 {[%clk 0:02:24]} 16. Bd2 {[%clk 0:02:25]}  Re7 {[%clk 0:01:50]} 17. Nf5 {[%clk 0:02:22]}  Rxe1+ {[%clk 0:01:49]} 18. Rxe1 {[%clk 0:02:23]}  Nce7 {[%clk 0:01:47]} 19. Nxe7+ {[%clk 0:02:10]}  Nxe7 {[%clk 0:01:47]} 20. Bf4 {[%clk 0:02:11]}  Ng6 {[%clk 0:01:39]} 21. Bg3 {[%clk 0:02:09]}  c6 {[%clk 0:01:38]} 22. h4 {[%clk 0:02:03]}  Ne7 {[%clk 0:01:29]} 23. h5 {[%clk 0:01:53]}  Kf7 {[%clk 0:01:26]} 24. Qf4 {[%clk 0:01:47]}  Re8 {[%clk 0:01:24]} 25. a4 {[%clk 0:01:33]}  a6 {[%clk 0:01:22]} 26. c4 {[%clk 0:01:24]}  b5 {[%clk 0:01:19]} 27. axb5 {[%clk 0:01:06]}  axb5 {[%clk 0:01:18]} 28. h6 {[%clk 0:01:06]}  g5 {[%clk 0:01:17]} 29. Qf3 {[%clk 0:01:00]}  Ng6 {[%clk 0:01:15]} 30. Rxe8 {[%clk 0:00:57]}  Qxe8 {[%clk 0:01:06]} 31. cxb5 {[%clk 0:00:57]}  cxb5 {[%clk 0:01:01]} 32. Qxd5+ {[%clk 0:00:57]}  Qe6 {[%clk 0:01:01]} 33. Qxb5 {[%clk 0:00:55]}  Ne7 {[%clk 0:01:02]} 34. Qb7 {[%clk 0:00:46]}  Qd5 {[%clk 0:00:47]} 35. Qxd5+ {[%clk 0:00:40]}  Nxd5 {[%clk 0:00:47]} 36. Kf1 {[%clk 0:00:40]}  Kg6 {[%clk 0:00:44]} 37. Ke2 {[%clk 0:00:39]}  Kxh6 {[%clk 0:00:45]} 38. Kf3 {[%clk 0:00:40]}  f5 {[%clk 0:00:44]} 39. Be5 {[%clk 0:00:39]}  Kg6 {[%clk 0:00:41]} 40. Ke2 {[%clk 0:00:33]}  h5 {[%clk 0:00:40]} 41. Kd2 {[%clk 0:00:21]}  h4 {[%clk 0:00:40]} 42. Ke2 {[%clk 0:00:21]}  g4 {[%clk 0:00:35]} 43. Kd2 {[%clk 0:00:16]}  f4 {[%clk 0:00:30]} 44. Ke2 {[%clk 0:00:16]}  Kf5 {[%clk 0:00:30]} 45. Bd6 {[%clk 0:00:14]}  Nc3+ {[%clk 0:00:25]} 46. Kf1 {[%clk 0:00:14]}  Nb5 {[%clk 0:00:19]} 47. Be7 {[%clk 0:00:14]}  h3 {[%clk 0:00:19]} 48. gxh3 {[%clk 0:00:15]}  gxh3 {[%clk 0:00:20]} 49. d5 {[%clk 0:00:15]}  Ke5 {[%clk 0:00:17]} 50. d6 {[%clk 0:00:09]}  Ke6 {[%clk 0:00:17]} 51. Kg1 {[%clk 0:00:09]}  Nd4 {[%clk 0:00:15]} 52. Kh2 {[%clk 0:00:09]}  Nf3+ {[%clk 0:00:13]} 53. Kxh3 {[%clk 0:00:09]}  Ne5 {[%clk 0:00:13]} 54. d4 {[%clk 0:00:08]}  Nd3 {[%clk 0:00:10]} 55. f3 {[%clk 0:00:06]}  Ne1 {[%clk 0:00:10]} 56. Kg4 {[%clk 0:00:06]}  Ng2 {[%clk 0:00:10]} 57. d5+ {[%clk 0:00:05]}  Kd7 {[%clk 0:00:11]} 58. Bf8 {[%clk 0:00:05]}  Ne3+ {[%clk 0:00:11]} 59. Kxf4 {[%clk 0:00:05]}  Nxd5+ {[%clk 0:00:11]} 60. Ke5 {[%clk 0:00:05]}  Ne3 {[%clk 0:00:10]} 61. f4 {[%clk 0:00:06]}  Ng4+ {[%clk 0:00:11]} 62. Kf5 {[%clk 0:00:06]}  Ne3+ {[%clk 0:00:11]} 63. Kg5 {[%clk 0:00:06]}  Ke8 {[%clk 0:00:10]} 64. Be7 {[%clk 0:00:06]}  Kf7 {[%clk 0:00:10]} 65. f5 {[%clk 0:00:07]}  Nd5 {[%clk 0:00:10]} 66. f6 {[%clk 0:00:07]}  Nb6 {[%clk 0:00:10]} 67. Kf5 {[%clk 0:00:07]}  Nd7 {[%clk 0:00:11]} 68. Ke4 {[%clk 0:00:08]}  Ke6 {[%clk 0:00:11]} 69. Kd4 {[%clk 0:00:08]}  Kf7 {[%clk 0:00:10]} 70. Kd5 {[%clk 0:00:09]}  Ke8 {[%clk 0:00:08]} 71. Kc6 {[%clk 0:00:09]}  Ne5+ {[%clk 0:00:08]} 72. Kc7 {[%clk 0:00:09]}  Nd7 {[%clk 0:00:09]} 73. f7+ {[%clk 0:00:09]}  Kxf7 {[%clk 0:00:08]} 74. Kxd7 {[%clk 0:00:10]}  Kg6 {[%clk 0:00:07]} 75. Kc7 {[%clk 0:00:11]} 1-0


[Site "https://www.chess.com"]